[Event "BL 2016-17"]
[Site "St. Veit/Glan"]
[Date "2017.03.24"]
[Round "6"]
[White "Dragnev, Valentin"]
[Black "Naumann, Alexander"]
[Result "1/2-1/2"]
[ECO "C07"]
[WhiteElo "2520"]
[BlackElo "2568"]
[Annotator "TA RC"]
[PlyCount "77"]
[EventDate "2017.??.??"]
[EventType "team-tourn"]
[EventCountry "AUT"]
[SourceTitle "playchess.com"]
[Source "ChessBase"]
[SourceQuality "1"]
[WhiteTeam "Wien-SK Ottakring"]
[BlackTeam "Maria Saal"]
[TimeControl "40/5400+30:1800+30"]

1. e4 {[%emt 0:00:00]} e6 {[%emt 0:00:10]} (1... c5 2. Nf3 e6 3. c3 d5 4. e5 Nc6 5. d4 Qb6 6. a3 Nh6 7. b4 cxd4 8. cxd4 Nf5 9. Be3 f6 10. exf6 gxf6 11. Nc3 Nxe3 12. fxe3 Bh6 13. e4 dxe4 14. Nxe4 O-O 15. Bc4 Kh8 16. Qd3 f5 17. Nc5 Bg7 {1-0 (58) Savchenko,B (2599)-Vitiugov,N (2738) Wroclaw 2014}) 2. d4 {[%emt 0:00:00]} d5 {[%emt 0:00:06]} 3. Nd2 $146 {[%emt 0:00:00]} (3. e5 c5 4. c3 Qb6 5. Nf3 Nc6 6. a3 Nge7 7. b4 cxd4 8. cxd4 Nf5 9. Be3 f6 10. exf6 gxf6 11. Bd3 Nxe3 12. fxe3 Bh6 13. O-O O-O 14. Qe1 Ne7 15. Nc3 Kh8 16. Qh4 Ng8 17. e4 dxe4 18. Nxe4 {0-1 (53) Zherebukh,Y (2637)-Rombaldoni,A (2528) Las Vegas 2015}) 3... c5 {[%emt 0:00:09]} 4. exd5 {[%emt 0:00:08]} Qxd5 {[%emt 0:00:10]} 5. Ngf3 {[%emt 0:00:08]} cxd4 {[%emt 0:00:13]} 6. Bc4 {[%emt 0:00:08]} Qd6 {[%emt 0:00:16]} 7. O-O {[%emt 0:00:51]} Nf6 {[%emt 0:00:11]} 8. Nb3 {[%emt 0:00:05]} Nc6 {[%emt 0:00:07]} 9. Nbxd4 {[%emt 0:03:35]} Nxd4 {[%emt 0:00:15]} 10. Qxd4 {[%emt 0:00:16]} Qxd4 {[%emt 0:01:35]} 11. Nxd4 {[%emt 0:02:15]} Bd7 {[%emt 0:00:10]} 12. Bf4 {[%emt 0:09:58]} Rc8 {[%emt 0:00:43]} 13. Bb3 {[%emt 0:00:41]} Bc5 {[%emt 0:00:17]} 14. Nf3 {[%emt 0:04:49]} Ke7 {[%emt 0:23:51]} 15. Ne5 {[%emt 0:11:06]} Rhd8 {[%emt 0:03:30]} 16. Nxd7 {[%emt 0:01:13]} Rxd7 {[%emt 0:00:30]} 17. Rae1 {[%emt 0:13:32]} h6 {[%emt 0:04:19]} 18. Re2 {[%emt 0:02:32]} b5 {[%emt 0:09:41]} 19. c3 {[%emt 0:16:32]} Nd5 {[%emt 0:00:31]} 20. Bc1 {[%emt 0:01:25]} b4 {[%emt 0:06:35]} 21. Rd1 {[%emt 0:16:37]} Rcd8 {[%emt 0:08:22]} 22. Rxd5 {[%emt 0:01:10]} Rxd5 {[%emt 0:00:11]} 23. Bxd5 {[%emt 0:00:02]} Rxd5 {[%emt 0:00:11]} 24. Bd2 {[%emt 0:00:08]} bxc3 {[%emt 0:05:50]} 25. Bxc3 {[%emt 0:00:20]} g5 {[%emt 0:12:08]} 26. Kf1 {[%emt 0:01:47]} f5 {[%emt 0:04:39]} 27. Rd2 {[%emt 0:02:51]} Kd6 {[%emt 0:00:51]} 28. Ke2 {[%emt 0:00:19]} g4 {[%emt 0:02:33]} 29. f3 {[%emt 0:02:27]} gxf3+ {[%emt 0:05:13]} 30. gxf3 {[%emt 0:00:31]} h5 {[%emt 0:00:22]} 31. h3 {[%emt 0:00:19]} e5 {[%emt 0:01:31]} 32. b3 {[%emt 0:05:09]} e4 {[%emt 0:01:12]} 33. fxe4 {[%emt 0:00:08]} fxe4 {[%emt 0:00:06]} 34. Rxd5+ {[%emt 0:02:19]} Kxd5 {[%emt 0:00:03]} 35. Bf6 {[%emt 0:01:02]} a6 {[%emt 0:00:43]} 36. Bc3 {[%emt 0:00:24]} Bb6 {[%emt 0:00:47]} 37. Bf6 {[%emt 0:00:24]} Bc5 {[%emt 0:00:08]} 38. Bc3 {[%emt 0:00:05]} Bb6 {[%emt 0:00:03]} 39. Bf6 {[%emt 0:00:05]} 1/2-1/2